bitfinex/quotes_ETHUSD_20220119
["timestamp","ask_amount","ask_price","bid_price","bid_amount"]
[1642580143139,1.11546,3067.0,3066.8,1.63098]
[1642580143140,7.3,3066.9,3066.8,1.63098]
[1642580143539,8.41573,3066.8,3065.7,1.58460183]
[1642580143739,1.84120567,3066.6,3065.8,1.58460183]
[1642580143939,0.81563,3066.4,3065.8,1.58460183]
[1642580144141,0.81563,3066.4,3065.7,1.59142291]
[1642580144341,0.8156108,3066.3,3065.8,2.77272113]
[1642580144542,0.6,3066.4,3065.8,2.77897379]
[1642580144745,0.3,3066.4,3065.9,2.77840537]
[1642580144964,0.3,3066.4,3066.0,2.77272113]
[1642580145142,0.81566,3066.4,3066.0,2.77783694]
[1642580145343,0.3,3066.3,3066.1,2.77726852]
[1642580145542,0.3,3066.3,3066.2,2.77272113]
[1642580145802,0.3,3066.3,3066.2,2.7767001]
[1642580146194,0.81566,3066.4,3066.2,2.7767001]
[1642580146395,0.81539,3066.6,3066.3,2.77272113]
[1642580146594,1.11539,3066.6,3066.3,2.77613167]
[1642580146792,1.11539,3066.6,3065.8,1.58460183]
[1642580146793,1.11539,3066.6,3066.4,2.77556325]
[1642580146992,1.11539,3066.6,3066.5,2.77272113]
[1642580147196,1.11539,3066.6,3066.5,0.00227369]
[1642580147396,0.82119,3066.6,3066.5,0.00227369]
[1642580147593,0.82119,3066.6,3066.4,0.00284212]
[1642580148199,3.5905011,3067.1,3066.4,0.00284212]
[1642580148200,2.44642,3067.3,3066.4,0.00284212]
[1642580148403,1.1684,3067.6,3066.5,0.11272237]
[1642580148599,0.00170527,3067.2,3067.0,1.31876193]
[1642580148801,0.00170527,3067.2,3067.1,2.77272113]
[1642580148999,0.00113685,3067.1,3066.6,0.00170527]
[1642580149299,0.81523,3067.2,3066.6,0.00170527]
[1642580149735,0.00113685,3067.1,3066.7,1.3012864]
[1642580150136,0.81650795,3067.1,3066.7,1.3012864]
[1642580150343,0.00113685,3067.1,3066.8,1.93032108]
[1642580150743,0.00113685,3067.1,3066.7,1.3012864]
[1642580151442,0.00113685,3067.1,3066.7,3.20550552]
[1642580151642,0.00113685,3067.1,3066.8,0.3]
[1642580151841,0.00113685,3067.1,3066.7,3.20550552]
[1642580152041,0.00113685,3067.1,3066.8,0.3]
[1642580152449,0.8152923,3067.5,3066.8,7.45]
[1642580152646,0.8152923,3067.5,3066.9,0.00113685]
[1642580153042,0.3,3067.4,3066.9,0.00113685]
[1642580153485,0.00113684,3067.3,3066.8,0.30170527]
[1642580153888,0.00397896,3067.8,3066.9,0.00113685]
[1642580154289,0.00341054,3067.7,3066.8,0.00170527]
[1642580154490,0.81867054,3067.7,3066.8,0.00170527]
[1642580154690,0.00284211,3067.6,3066.8,0.00170527]
[1642580155092,0.00227369,3067.5,3066.8,0.00170527]
[1642580155390,0.00170527,3067.4,3066.8,0.00170527]
[1642580155591,0.81537,3067.3,3066.8,0.00170527]
[1642580155793,0.81650684,3067.3,3066.8,0.00170527]
[1642580156091,1.11650684,3067.3,3066.8,0.00170527]
[1642580156494,0.81650684,3067.3,3066.8,0.00170527]
[1642580156691,0.00113684,3067.3,3066.8,0.00170527]
[1642580157537,0.52164474,3067.4,3066.9,4.25]
[1642580157936,0.815263,3067.5,3067.0,0.00170527]
[1642580158539,1.115263,3067.5,3066.8,0.00284211]
[1642580158739,1.930613,3067.5,3066.8,0.00284211]
[1642580158940,0.8153213,3067.4,3066.8,0.00284211]
[1642580159341,4.759139,3068.1,3066.8,0.00284211]
[1642580159542,0.3,3067.6,3066.8,0.00284211]
[1642580159739,0.00113685,3067.5,3066.8,0.00284211]
[1642580160143,0.81642855,3067.5,3066.8,0.00284211]
[1642580160345,1.63173855,3067.5,3066.8,0.00284211]
[1642580160804,0.81541,3067.4,3066.8,0.00284211]
[1642580160994,1.11541,3067.4,3066.8,0.00284211]
[1642580161396,1.6307914,3067.3,3066.8,0.00284211]
[1642580161596,0.00113685,3067.5,3066.5,0.00454738]
[1642580161795,0.00113685,3067.5,3066.5,1.58914921]
[1642580162097,0.00113685,3067.5,3066.6,2.00397896]
[1642580162295,0.00113685,3067.5,3067.3,1.23155083]
[1642580162497,0.03060416,3068.0,3067.5,7.3]
[1642580162702,0.00716319,3068.7,3068.0,0.10367951]
[1642580162908,2.14025086,3069.7,3068.6,0.01223677]
[1642580163199,6.5166,3069.5,3068.7,0.08801054]
[1642580163395,6.5166,3069.5,3068.6,0.01223677]
[1642580163596,0.01080005,3069.4,3069.2,1.513304]
[1642580163795,0.01080005,3069.4,3068.9,0.2447]
[1642580163999,6.5166,3069.5,3069.1,0.471]
[1642580164000,0.01023162,3069.3,3069.1,0.471]
[1642580164396,0.0096632,3069.2,3069.1,0.471]
[1642580164839,0.0096632,3069.2,3068.6,1.0]
[1642580165237,0.00909478,3069.1,3068.6,0.0001]
[1642580165442,0.00909478,3069.1,3067.6,0.01237606]
[1642580165443,19.42909478,3069.1,3067.8,1.0]
[1642580165639,0.81526,3068.6,3067.9,2.77113761]
[1642580165841,0.81527,3068.4,3067.9,2.77113761]
[1642580166041,2.11527,3068.4,3067.8,1.0]
[1642580166241,0.81527,3068.2,3067.1,1.0]
[1642580166440,0.81527,3068.2,3067.2,2.77150476]
[1642580166639,0.00341054,3068.1,3067.2,2.77321003]
[1642580166839,0.00341054,3068.1,3067.3,0.00113685]
[1642580167040,0.00284212,3068.0,3067.3,0.00113685]
[1642580167440,0.00227369,3067.9,3067.3,0.00113685]
[1642580167642,0.81532,3067.8,3067.3,0.00113685]
[1642580167950,2.49708302,3067.7,3067.2,2.77548372]
[1642580168144,2.49708302,3067.7,3067.3,2.77150476]
[1642580168410,3.49708302,3067.7,3067.3,2.7749153]
[1642580168601,3.49708302,3067.7,3067.4,0.00284211]
[1642580168800,1.630757,3067.6,3067.4,0.00284211]
[1642580168998,1.630757,3067.6,3066.6,2.77195649]
[1642580169199,0.81544,3067.4,3066.6,0.0073895]
[1642580169400,0.81544,3067.4,3066.7,2.77877757]
[1642580169599,0.81544,3067.4,3066.8,2.77195649]
[1642580169600,1.11544,3067.4,3066.8,2.77195649]
[1642580169799,1.11544,3067.4,3066.9,2.77195649]
[1642580169800,2.11544,3067.4,3066.9,2.77195649]
[1642580170001,1.11544,3067.4,3066.9,2.77764072]
[1642580170201,1.11544,3067.4,3067.0,2.7770723]
[1642580170407,0.81538,3067.5,3067.1,2.77195649]
[1642580170609,0.3,3067.5,3067.1,2.77650387]
[1642580170806,1.0,3067.7,3067.2,2.77593545]
[1642580171004,1.0,3067.7,3067.3,2.77195649]
[1642580171005,0.3,3067.7,3067.3,2.77195649]
[1642580171204,0.3,3067.7,3067.3,2.77536703]
[1642580171405,0.3,3068.0,3067.4,2.7747986]
[1642580171606,2.63058,3068.1,3067.5,2.77195649]
[1642580171607,2.93058,3068.1,3067.5,2.77195649]
[1642580171808,2.93058,3068.1,3067.6,2.84100232]
[1642580171809,2.11522,3068.1,3067.6,2.84100232]
[1642580172035,1.11522,3068.1,3067.7,2.77195649]
[1642580172234,1.11522,3068.1,3067.8,2.77195649]
[1642580172441,19.12,3068.0,3067.7,0.00113684]
[1642580172639,3.24673008,3067.9,3067.7,0.00113684]
[1642580172850,5.96587,3067.8,3066.8,2.77794816]
[1642580173040,1.0,3067.7,3066.9,2.77737974]
[1642580173246,1.0,3067.7,3067.0,2.77169551]
[1642580173441,1.81587,3067.8,3067.0,2.77681132]
[1642580173643,1.81587,3067.8,3067.1,2.77624289]
[1642580173840,1.81587,3067.8,3067.2,2.77169551]
[1642580174040,1.81587,3067.8,3067.2,2.77567447]
[1642580174240,1.81587,3067.8,3067.3,2.77510605]
[1642580174241,0.51587,3067.8,3067.3,2.77510605]
[1642580174444,0.51587,3067.8,3067.4,2.77169551]
[1642580174643,0.51587,3067.8,3067.5,2.77169551]
[1642580174846,0.51587,3067.8,3067.6,2.77169551]
[1642580175041,0.51587,3067.8,3067.7,2.77169551]
[1642580175241,0.51587,3067.8,3067.7,2.77283235]
[1642580175441,0.51587,3067.8,3067.7,0.00113684]
[1642580175898,0.51587,3067.8,3067.0,4.27813503]
[1642580176094,0.51587,3067.8,3067.1,2.77624289]
[1642580176296,0.51587,3067.8,3067.2,2.77169551]
[1642580176496,0.51587,3067.8,3067.2,2.77567447]
[1642580176797,0.51587,3067.8,3066.6,3.78450938]
[1642580176798,0.51587,3067.8,3067.3,2.77510605]
[1642580176995,0.81587,3067.8,3067.4,2.77169551]
[1642580177196,0.80801175,3067.8,3067.5,2.77169551]
[1642580177395,0.80801175,3067.8,3067.5,0.00227369]
[1642580177595,0.80801175,3067.8,3067.6,0.00170527]
[1642580177795,0.51587,3067.8,3067.1,2.77624289]
[1642580177995,0.5153,3067.9,3067.2,2.77169551]
[1642580178197,0.5153,3067.9,3067.2,2.77567447]
[1642580178403,0.5153,3067.9,3067.3,2.77510605]
[1642580178599,2.71396071,3067.9,3067.4,2.77169551]
[1642580178799,2.71396071,3067.9,3067.5,2.77169551]
[1642580178800,19.12,3067.8,3067.5,2.77169551]
[1642580179001,2.2779992,3067.7,3067.5,0.00227369]
[1642580179199,0.3,3067.7,3067.6,0.00170527]
[1642580179400,0.81547,3067.4,3066.6,0.0073895]
[1642580179640,0.81547,3067.4,3066.7,2.77191515]
[1642580180043,0.81547,3067.4,3066.8,0.00625265]
[1642580180240,0.81539,3067.5,3066.9,2.77191515]
[1642580180443,1.0,3067.4,3066.9,2.77191515]
[1642580180644,1.6308168,3067.5,3067.0,0.00511581]
[1642580180847,0.8154,3067.4,3067.1,2.77191515]
[1642580181151,0.81539,3067.5,3067.2,0.00397896]
[1642580181444,0.8153687,3067.7,3067.3,2.77191515]
[1642580181844,0.8153687,3067.7,3067.4,0.00284211]
[1642580182047,0.8153687,3067.7,3067.4,2.77475726]
[1642580182247,0.8153687,3067.7,3067.4,0.00284211]
[1642580182248,0.81535,3067.6,3067.4,0.00284211]
[1642580182447,0.81535,3067.6,3067.5,0.00227369]
[1642580182650,0.81544,3067.4,3066.6,0.0073895]
[1642580182854,0.81544,3067.4,3066.7,2.77196063]
[1642580182855,19.591,3067.3,3066.7,2.77196063]
[1642580183051,1.0,3067.2,3066.7,2.77196063]
[1642580183296,22.22233,3067.2,3066.8,0.00625265]
[1642580183499,23.03801,3067.2,3066.9,2.77196063]
[1642580183899,23.03801,3067.2,3067.0,0.00511581]
[1642580184100,23.33801,3067.2,3067.0,0.00511581]
[1642580184400,23.33801,3067.2,3066.2,0.0096632]
[1642580184603,0.81563,3066.9,3066.3,2.77254702]
[1642580184801,1.11563,3066.9,3066.3,2.77254702]
[1642580185000,2.25517376,3066.8,3066.4,2.78107337]
[1642580185202,2.25517376,3066.8,3066.5,2.77254702]
[1642580185402,3.25517376,3066.8,3066.5,2.78050494]
[1642580185600,0.81563,3066.7,3066.6,2.77993652]
[1642580185801,1.11563,3066.7,3066.6,2.77993652]
[1642580186005,9.71563,3066.7,3066.6,2.77993652]
[1642580186208,9.71563,3066.7,3065.4,1.58460183]
[1642580186209,7.3,3066.6,3065.4,1.58460183]
[1642580186405,19.12,3066.4,3065.3,2.58460183]
[1642580186605,0.81581,3066.1,3065.5,0.00625266]
[1642580186806,1.11581,3066.1,3065.5,0.00625266]
[1642580187077,0.81581,3066.1,3065.5,0.00625266]
[1642580187269,0.471,3066.8,3065.7,1.16706023]
[1642580187471,0.03044741,3067.2,3065.7,2.75166206]
[1642580187472,1.28654,3067.2,3065.7,2.75166206]
[1642580187669,1.28654,3067.2,3066.3,1.5419604]
[1642580187870,0.00284212,3067.1,3065.9,1.58460183]
[1642580188071,0.52888212,3067.2,3066.5,5.45]
[1642580188474,0.52888212,3067.2,3066.6,0.00284212]
[1642580188674,0.81548,3067.1,3066.6,0.00284212]
[1642580188878,0.81548,3067.1,3066.3,1.13474055]
[1642580189076,0.81548,3067.1,3066.1,0.00568424]
[1642580189276,0.81548,3067.1,3066.4,0.00397897]
[1642580189474,0.81548,3067.1,3065.8,4.53748944]
[1642580189475,0.81548,3067.1,3066.1,0.00568424]
[1642580189873,0.81548,3067.1,3065.9,3.54489514]
[1642580189874,1.631,3067.1,3065.9,3.54489514]
[1642580190074,2.11552,3067.1,3066.0,0.00625266]
[1642580190474,2.11552,3067.1,3066.0,1.59085449]
[1642580190674,2.11552,3067.1,3066.0,0.00625266]
[1642580190896,2.11552,3067.1,3066.1,0.00568424]
[1642580191098,2.11552,3067.1,3065.8,3.58460183]
[1642580191099,0.81553,3066.9,3066.0,0.00625266]
[1642580191297,0.81553,3066.9,3065.9,0.00682109]
[1642580191600,1.11553,3066.9,3065.9,0.00682109]
[1642580191996,0.3,3066.9,3065.8,1.19909727]
[1642580192197,0.3,3066.9,3065.9,0.00682109]
[1642580192396,1.11553,3067.0,3065.9,0.00682109]
[1642580192599,0.85125673,3066.9,3065.9,0.00682109]
[1642580193196,0.81566,3066.5,3065.9,0.00682109]
[1642580193696,1.11566,3066.5,3065.9,0.00682109]
[1642580193897,0.8156761,3066.4,3065.9,0.00682109]
[1642580194101,0.8156761,3066.4,3065.6,0.00852636]
[1642580194944,0.3,3066.5,3065.6,0.00852636]
[1642580195143,0.3,3066.6,3065.6,1.5046011]
[1642580195544,0.3,3066.6,3065.7,0.00795793]
[1642580195844,0.81564,3066.5,3065.7,0.00795793]
[1642580197646,0.81573,3066.4,3065.7,0.00795793]
[1642580197850,0.81576,3066.2,3065.7,0.00795793]
[1642580198298,0.52256,3066.2,3065.7,0.00795793]
[1642580198498,0.82256,3066.2,3065.7,0.00795793]
[1642580198704,0.3,3066.2,3065.7,0.00795793]
[1642580199105,0.3,3066.4,3065.7,0.00795793]
[1642580199312,3.26322,3066.4,3065.7,0.00795793]
[1642580199506,3.26322,3066.4,3065.1,1.0]
[1642580199507,19.12,3066.3,3065.5,0.00909478]
[1642580199706,19.12,3066.3,3065.4,0.0096632]
[1642580199707,20.12,3066.3,3065.4,0.0096632]
[1642580199910,20.12,3066.3,3065.3,0.01023163]
[1642580199911,0.81589,3065.9,3065.3,0.01023163]
[1642580200113,2.33263701,3065.5,3065.3,0.01023163]
[1642580200308,19.12,3065.7,3065.3,0.01023163]
[1642580200507,1.3,3065.6,3065.3,0.01023163]
[1642580200907,0.8159474,3065.5,3065.1,0.01136847]
[1642580201110,0.8535695,3065.5,3065.1,0.01136847]
[1642580201307,1.471,3066.2,3065.1,0.01136847]
[1642580201508,0.3,3066.2,3065.4,1.19934903]
[1642580201708,1.3,3066.3,3065.4,1.19934903]
[1642580201912,1.6,3066.3,3065.5,0.00909478]
[1642580202447,0.8156751,3066.2,3065.1,0.01136847]
[1642580202647,0.81575,3066.1,3065.4,1.70272639]
[1642580202848,3.7472507,3066.3,3065.4,1.70272639]
[1642580202849,0.3,3066.3,3065.4,1.70272639]
[1642580203046,3.4798,3066.4,3065.8,1.36381738]
[1642580203247,0.0104,3066.4,3065.8,1.36381738]
[1642580203446,3.7197,3066.8,3065.9,0.00682109]
[1642580203648,3.2998,3067.2,3066.3,1.34783874]
[1642580203849,7.5589,3067.4,3066.6,2.29168603]
[1642580204246,0.00113684,3067.3,3066.8,1.51158439]
[1642580204647,0.00113684,3067.3,3066.9,0.00113685]
[1642580205654,0.00113684,3067.3,3066.9,2.13933682]
[1642580205909,0.00113684,3067.3,3067.0,0.471]
[1642580206109,0.00113684,3067.3,3067.2,7.3]
[1642580206309,0.03445833,3068.4,3068.1,1.2338572]
[1642580206509,0.03445833,3068.4,3067.3,7.30227368]
[1642580206718,0.00568424,3068.3,3067.4,2.77157424]
[1642580207117,0.00511581,3068.2,3067.4,2.77157424]
[1642580207313,0.00511581,3068.2,3067.3,7.30227368]
[1642580207513,0.00454739,3068.1,3067.4,2.77162254]
[1642580207713,0.00454739,3068.1,3067.7,1.33956908]
[1642580207915,0.00397897,3068.0,3067.8,1.90743038]
[1642580208317,0.8149828,3068.8,3067.9,5.8]
[1642580208717,0.0022737,3068.3,3068.0,1.9366782]
[1642580208918,0.0022737,3068.3,3067.8,1.90743038]
[1642580209117,0.00170527,3068.2,3067.9,2.77149629]
[1642580209545,3.2599756,3069.0,3068.0,2.77147107]
[1642580209546,0.00113685,3068.1,3068.0,2.77147107]
[1642580209751,0.00113685,3068.1,3067.8,1.0]
[1642580210551,0.00113685,3068.1,3067.3,2.096551]
[1642580210750,0.00113685,3068.1,3067.4,4.91712713]
[1642580210952,0.00113685,3068.1,3067.5,2.77150619]
[1642580211151,0.00113685,3068.1,3067.5,2.77377988]
[1642580211351,0.00113685,3068.1,3067.6,0.00170527]
[1642580211954,0.00113685,3068.1,3067.6,1.23351031]
[1642580212154,0.00113685,3068.1,3067.7,2.77150619]
[1642580212358,0.00113685,3068.1,3067.7,2.77264303]
[1642580213494,0.51851685,3068.6,3067.7,2.77264303]
[1642580213699,0.51851685,3068.6,3067.8,0.00170527]
[1642580213896,0.00113685,3068.3,3067.8,0.00170527]
[1642580214297,0.00113685,3068.3,3068.1,1.32483257]
[1642580214496,0.00113685,3068.3,3068.2,5.70062775]
[1642580214696,0.00113685,3068.3,3068.2,3.75]
[1642580215495,0.00113685,3068.3,3067.9,3.929]
[1642580215896,0.00113685,3068.3,3067.8,0.00170527]
[1642580216296,0.00113685,3068.3,3067.8,2.77141014]
[1642580216497,0.81630685,3068.3,3067.8,0.00170527]
[1642580216697,0.81517,3068.2,3067.9,0.00113685]
[1642580216898,1.11517,3068.2,3067.8,0.00170527]
[1642580217148,1.11517,3068.2,3067.7,0.00227369]
[1642580217149,2.11517,3068.2,3067.7,0.00227369]
[1642580217349,2.11517,3068.2,3067.4,2.77144933]
[1642580217350,1.3,3068.2,3067.4,0.00397896]
[1642580217653,1.96175119,3068.2,3067.4,0.00397896]
[1642580217849,1.63074,3068.0,3067.4,0.00397896]
[1642580218046,0.81538,3068.0,3067.4,0.00397896]
[1642580218245,1.81538,3068.0,3067.4,0.00397896]
[1642580218446,1.52558,3068.0,3067.4,0.00397896]
[1642580218645,0.52558,3068.0,3067.4,0.00397896]
[1642580219047,0.8153562,3067.8,3067.4,0.00397896]
[1642580219647,1.9307362,3067.8,3067.4,0.00397896]
[1642580220046,2.9307362,3067.8,3067.4,0.00397896]
[1642580220826,3.4460962,3067.8,3067.4,0.00397896]
[1642580221209,3.48155557,3067.8,3067.4,0.00397896]
[1642580221609,3.4460962,3067.8,3067.4,0.00397896]
[1642580221813,0.3,3067.7,3067.4,0.00397896]
[1642580222011,0.81534,3067.6,3067.4,0.00397896]
[1642580222211,1.6306745,3067.6,3067.4,0.00397896]
[1642580223013,0.3,3067.5,3067.4,0.00397896]
[1642580223813,1.66627212,3067.6,3067.4,0.00397896]
[1642580225353,0.3,3067.5,3067.4,0.00397896]
[1642580225752,1.67020605,3067.6,3067.4,0.00397896]
[1642580225951,1.6306745,3067.6,3067.4,0.00397896]
[1642580226151,1.66714177,3067.6,3067.4,0.00397896]
[1642580226551,1.6306745,3067.6,3067.4,0.00397896]
[1642580227354,2.9306745,3067.6,3067.4,0.00397896]
[1642580227555,0.3,3067.5,3067.4,0.00397896]
[1642580227755,5.75,3067.5,3067.4,0.00397896]
[1642580228798,5.4501,3067.5,3067.4,0.00397896]
[1642580229003,5.4501,3067.5,3066.0,5.0864]
[1642580229004,7.3,3067.4,3066.0,5.0864]
[1642580229204,7.3,3067.4,3066.1,2.77251212]
[1642580229205,0.8156966,3067.0,3066.1,2.77251212]
[1642580229400,19.591,3066.9,3066.2,2.77251212]
[1642580229799,19.591,3066.9,3066.3,0.00625266]
[1642580230000,2.25549366,3066.7,3066.3,0.00625266]
[1642580230200,0.81574,3066.5,3066.3,0.00625266]
[1642580230400,0.8157135,3066.5,3065.9,0.00852636]
[1642580230604,1.84724367,3066.5,3066.0,2.77269276]
[1642580230801,1.8157135,3066.5,3066.0,2.77269276]
[1642580231003,1.8157135,3066.5,3066.1,2.77269276]
[1642580231203,1.0,3066.5,3066.2,2.77269276]
[1642580231502,1.0,3066.5,3066.3,2.77894542]
[1642580231503,1.3,3066.5,3066.3,2.77894542]
[1642580231702,1.81561,3066.7,3066.3,2.77894542]
[1642580232065,1.63112,3067.1,3066.4,0.00568424]
[1642580232269,3.7364,3067.2,3066.5,2.77269276]
[1642580232568,1.0,3067.1,3066.6,0.00454739]
[1642580232768,1.0,3067.2,3066.7,2.77269276]
[1642580232968,3.2258,3067.3,3066.7,2.77269276]
[1642580233270,1.63094,3067.5,3066.8,0.00341054]
[1642580233271,4.0772491,3067.5,3066.8,0.00341054]
[1642580233467,4.0772491,3067.5,3066.8,2.7761033]
[1642580233667,1.0,3067.4,3066.8,0.00341054]
[1642580233869,4.0772491,3067.5,3066.9,0.00284212]
[1642580234070,4.0772491,3067.5,3066.5,2.77219628]
[1642580234071,4.0772491,3067.5,3066.5,4.27854595]
[1642580234269,1.06981684,3067.4,3066.6,2.77674367]
[1642580234573,1.88521684,3067.4,3066.7,2.77219628]
[1642580234769,1.88522684,3067.3,3066.7,2.77617525]
[1642580234970,1.06981684,3067.2,3066.8,2.77219628]
[1642580235170,1.06981684,3067.2,3066.8,2.77560682]
[1642580235371,1.06981684,3067.2,3066.9,0.00284212]
[1642580235810,1.06981684,3067.2,3066.7,0.00397897]
[1642580236006,1.06981684,3067.2,3066.8,2.77566392]
[1642580236200,1.06981684,3067.2,3066.6,0.00454739]
[1642580236399,1.06981684,3067.2,3066.9,0.00284212]
[1642580236599,1.06981684,3067.2,3066.6,2.776822]
[1642580236801,1.06981684,3067.2,3066.8,0.00341054]
[1642580237001,1.06981684,3067.2,3066.8,2.77227461]
[1642580237202,1.06981684,3067.2,3066.9,2.77227461]
[1642580237400,1.06981684,3067.2,3066.9,0.00284212]
[1642580237601,0.81544,3067.1,3067.0,0.0022737]
[1642580237800,1.03389269,3067.1,3066.8,2.77559954]
[1642580238000,1.03389269,3067.0,3066.9,0.00284212]
[1642580238505,1.0,3067.4,3066.5,2.772189]
[1642580238506,1.04426943,3067.3,3066.6,0.00454739]
[1642580238704,3.26203,3067.2,3066.6,0.00454739]
[1642580238904,0.75266943,3067.1,3066.6,0.00454739]
[1642580239102,0.75266943,3067.1,3066.5,0.00511581]
[1642580239103,1.75266943,3067.1,3066.5,0.00511581]
[1642580239302,1.04426943,3067.0,3066.6,2.77242748]
[1642580239547,1.04426943,3066.9,3066.6,2.77242748]
[1642580239752,1.04426943,3066.8,3066.7,0.00397897]
[1642580240254,1.04426943,3067.0,3066.7,0.00397897]
[1642580240458,1.44427645,3066.9,3066.7,0.00397897]
[1642580240654,0.81556,3066.7,3066.5,0.00511581]
[1642580240854,0.62872635,3066.6,3066.5,0.00511581]
[1642580241060,0.62872635,3066.6,3066.5,2.77764024]
[1642580242358,0.34310946,3066.6,3066.5,2.77764024]
[1642580243057,0.34310946,3066.8,3066.5,2.77764024]
[1642580243301,0.34310946,3066.8,3066.5,0.00511581]
[1642580243302,1.97418946,3066.8,3066.5,0.00511581]
[1642580243504,0.34310946,3066.7,3066.6,0.00454739]
[1642580243709,0.34310946,3066.7,3066.3,1.0]
[1642580243905,0.04850946,3066.7,3066.4,2.77254405]
[1642580244108,0.34310946,3066.8,3066.4,2.77822829]
[1642580244305,0.64310946,3066.8,3066.5,2.77765986]
[1642580244507,0.3,3066.8,3066.5,0.00511581]
[1642580244707,0.81562,3066.7,3066.6,2.77708839]
[1642580244908,1.3,3066.8,3066.6,2.772541]
[1642580245108,0.3,3066.8,3066.6,0.00454739]
[1642580245309,1.3,3067.2,3066.7,2.77639487]
[1642580245509,1.2106,3067.6,3066.8,2.77236747]
[1642580245709,5.5421228,3067.8,3066.8,2.77577801]
[1642580245710,0.03996218,3067.7,3066.8,2.77577801]
[1642580245909,5.57673286,3067.8,3066.9,0.00284212]
[1642580246111,0.8154,3067.5,3066.9,0.00284212]
[1642580246315,0.81537,3067.4,3066.9,0.00284212]
[1642580246710,1.11537,3067.4,3066.9,0.00284212]
[1642580246914,0.3,3067.4,3066.9,0.00284212]
[1642580247152,1.11539,3067.4,3066.9,0.00284212]
[1642580247353,0.8154,3067.2,3066.9,2.77520959]
[1642580247552,1.1154,3067.2,3066.9,0.00284212]
[1642580247753,1.1154,3067.2,3067.0,0.0022737]
[1642580247954,1.1154,3067.2,3066.9,0.00284212]
[1642580248153,1.1154,3067.2,3066.8,0.00341054]
[1642580248453,1.1154,3067.2,3066.8,1.10452515]
[1642580248454,0.8154,3067.2,3066.8,1.10452515]
[1642580248654,1.1154,3067.2,3066.9,2.77236747]
[1642580248858,1.9307946,3067.2,3067.0,2.77236747]
[1642580249056,1.6307946,3067.2,3067.0,0.0022737]
[1642580249253,1.6307946,3067.2,3067.1,0.00170527]
[1642580249455,1.6307946,3067.2,3066.7,2.77618347]
[1642580249654,1.6307946,3067.2,3066.8,2.77561504]
[1642580249655,2.4462146,3067.2,3066.8,2.77561504]
[1642580249856,2.4462146,3067.2,3066.9,2.7722045]
[1642580250055,2.4462146,3067.2,3067.0,2.7722045]
[1642580250256,2.4462146,3067.2,3067.0,0.0022737]
[1642580250454,3.4462146,3067.2,3067.1,0.00170527]
[1642580250658,3.4462146,3067.2,3066.7,2.77232227]
[1642580250659,0.3,3067.1,3066.7,2.77630124]
[1642580250900,0.3,3067.1,3066.8,2.77573281]
[1642580250901,0.81547,3067.0,3066.8,2.77573281]
[1642580251098,1.6309433,3067.0,3066.9,2.77232227]
[1642580251297,1.6309433,3067.0,3066.9,2.77516439]
[1642580252099,1.6309433,3067.0,3066.9,0.00284212]
[1642580252299,1.11547,3067.1,3066.9,0.00284212]
[1642580252300,0.3,3067.1,3066.9,0.00284212]
[1642580252502,0.3,3067.1,3066.8,0.00341054]
[1642580252700,1.6307933,3067.2,3066.8,0.00341054]
[1642580254204,1.3328933,3067.2,3066.8,0.00341054]
[1642580254672,2.1483033,3067.2,3066.8,0.00341054]
[1642580255376,1.6307036,3067.4,3066.8,0.00341054]
[1642580255575,2.4460836,3067.4,3066.8,0.00341054]
[1642580255775,0.3,3067.3,3066.8,0.00341054]
[1642580256276,1.3,3067.3,3066.8,0.00341054]
[1642580256780,1.3,3067.3,3066.8,2.77573281]
[1642580256980,0.3,3067.3,3066.8,2.77573281]
[1642580257182,0.8153872,3067.2,3066.9,0.00284212]
[1642580257382,2.11539,3067.3,3066.9,0.00284212]
[1642580257683,2.746292,3067.3,3066.9,0.00284212]
[1642580257883,0.81542,3067.2,3066.9,0.00284212]
[1642580258320,1.81542,3067.2,3066.9,0.00284212]
[1642580258813,1.8154096,3067.2,3066.9,0.00284212]
[1642580259007,0.3,3067.1,3066.9,0.00284212]
[1642580259209,0.01,3067.1,3066.9,0.00284212]
[1642580259412,0.8154096,3067.2,3066.9,0.00284212]
[1642580259609,0.8154096,3067.2,3066.8,2.77573281]
[1642580259913,0.3,3067.1,3066.9,2.77516439]
[1642580260111,1.3,3067.1,3066.9,0.00284212]
[1642580260307,1.3,3067.1,3066.3,1.0]
[1642580260308,1.3,3067.1,3067.0,0.0022737]
[1642580260510,0.8155878,3066.9,3066.4,2.77833777]
[1642580260708,0.85010252,3066.9,3066.5,2.77776934]
[1642580260911,3.2624,3066.8,3066.6,2.77265353]
[1642580261110,3.59795076,3066.8,3066.6,2.77720092]
[1642580261308,1.0,3066.7,3066.1,3.0]
[1642580261510,1.0,3066.7,3066.1,1.0]
[1642580261708,0.815649,3066.6,3066.2,0.00682109]
[1642580261913,1.1156,3066.5,3066.2,0.00682109]
[1642580264364,0.8156,3066.5,3066.2,0.00682109]
[1642580264573,0.8156,3066.5,3066.1,1.58460183]
[1642580264767,0.8156,3066.5,3066.1,1.59199134]
[1642580266413,0.8156,3066.5,3066.1,0.00738951]
[1642580266915,2.6311682,3066.7,3066.1,0.00738951]
[1642580266916,0.81554,3066.7,3066.3,1.38528442]
[1642580267123,2.44831527,3067.7,3066.8,1.175284]
[1642580267316,2.44831527,3067.7,3066.9,0.07534639]
[1642580267317,0.00170527,3067.7,3066.9,0.07534639]
[1642580267516,3.9114,3067.8,3066.9,0.07818851]
[1642580267517,0.00113684,3067.6,3066.9,0.07818851]
[1642580267715,0.00113684,3067.6,3067.1,0.06744708]
[1642580267916,0.00113684,3067.6,3067.0,0.0022737]
[1642580268116,0.00113684,3067.6,3067.2,0.00113685]
[1642580268315,0.00113684,3067.6,3067.0,0.0022737]
[1642580268816,0.00113684,3067.6,3067.1,1.0]
[1642580269216,0.00113684,3067.6,3067.2,0.00113685]
[1642580269418,1.6305093,3067.8,3067.3,3.75]
[1642580269419,0.8152393,3067.8,3067.3,3.75]
[1642580269662,4.19443,3067.9,3067.3,4.97573708]
[1642580269860,0.81523,3067.9,3067.4,0.00113684]
[1642580270058,0.00113685,3067.8,3067.4,0.00113684]
[1642580273705,0.00113685,3067.8,3067.5,0.81498]
[1642580273908,0.00113685,3067.8,3067.7,8.3]
[1642580274110,0.00113685,3067.8,3067.7,1.0]
[1642580274510,22.27470769,3068.8,3067.7,1.0]
[1642580274511,21.98104454,3068.8,3067.7,1.0]
[1642580274710,22.28104454,3068.8,3067.7,1.0]